[Event "Titled Tuesday Blitz July 11 Early 2023"]
[White "Tokhirjonova, Gulrukhbegim"]
[Black "Xavier_mompel"]
[WhiteFideId "14203626"]
[WhiteElo "2495"]
[BlackElo "2256"]
[Result "1-0"]
[Round "3"]
[TimeControl "180+2"]
[Date "2023.07.11"]
[WhiteClock "0:01:57"]
[BlackClock "0:01:12"]
[Board "190"]

1. Nc3 {[%clk 0:02:55]}  d5 {[%clk 0:02:58]} 2. d4 {[%clk 0:02:56]}  Nf6 {[%clk 0:02:58]} 3. Bf4 {[%clk 0:02:56]}  e6 {[%clk 0:02:58]} 4. e3 {[%clk 0:02:54]}  Bd6 {[%clk 0:02:57]} 5. Bg3 {[%clk 0:02:54]}  O-O {[%clk 0:02:57]} 6. Bd3 {[%clk 0:02:54]}  c5 {[%clk 0:02:53]} 7. dxc5 {[%clk 0:02:53]}  Bxc5 {[%clk 0:02:53]} 8. Nf3 {[%clk 0:02:54]}  Nc6 {[%clk 0:02:52]} 9. O-O {[%clk 0:02:49]}  Bd6 {[%clk 0:02:52]} 10. e4 {[%clk 0:02:46]}  Bxg3 {[%clk 0:02:48]} 11. hxg3 {[%clk 0:02:47]}  d4 {[%clk 0:02:41]} 12. Ne2 {[%clk 0:02:43]}  e5 {[%clk 0:02:42]} 13. c3 {[%clk 0:02:43]}  Bg4 {[%clk 0:02:40]} 14. cxd4 {[%clk 0:02:39]}  Bxf3 {[%clk 0:02:39]} 15. gxf3 {[%clk 0:02:39]}  Nxd4 {[%clk 0:02:37]} 16. Nxd4 {[%clk 0:02:39]}  Qxd4 {[%clk 0:02:38]} 17. Bc2 {[%clk 0:02:39]}  Rfd8 {[%clk 0:02:35]} 18. Qxd4 {[%clk 0:02:36]}  Rxd4 {[%clk 0:02:34]} 19. Rfd1 {[%clk 0:02:33]}  Rad8 {[%clk 0:02:32]} 20. Kf1 {[%clk 0:02:31]}  R8d6 {[%clk 0:02:25]} 21. Ke1 {[%clk 0:02:27]}  Nd7 {[%clk 0:02:23]} 22. b4 {[%clk 0:02:18]}  Kf8 {[%clk 0:02:15]} 23. a3 {[%clk 0:02:17]}  Ke7 {[%clk 0:02:14]} 24. Ke2 {[%clk 0:02:18]}  Nb6 {[%clk 0:02:10]} 25. Bb3 {[%clk 0:02:17]}  f6 {[%clk 0:02:06]} 26. Rxd4 {[%clk 0:02:17]}  Rxd4 {[%clk 0:02:07]} 27. Rc1 {[%clk 0:02:17]}  Kd7 {[%clk 0:02:02]} 28. Ke3 {[%clk 0:02:15]}  h6 {[%clk 0:01:58]} 29. f4 {[%clk 0:02:14]}  Kd6 {[%clk 0:01:56]} 30. g4 {[%clk 0:02:14]}  g5 {[%clk 0:01:53]} 31. fxe5+ {[%clk 0:02:12]}  fxe5 {[%clk 0:01:53]} 32. Rh1 {[%clk 0:02:12]}  Nc4+ {[%clk 0:01:43]} 33. Bxc4 {[%clk 0:02:09]}  Rxc4 {[%clk 0:01:44]} 34. Rxh6+ {[%clk 0:02:09]}  Kc7 {[%clk 0:01:39]} 35. Rg6 {[%clk 0:02:03]}  Rc3+ {[%clk 0:01:37]} 36. Ke2 {[%clk 0:02:03]}  Rxa3 {[%clk 0:01:36]} 37. Rxg5 {[%clk 0:02:03]}  Rb3 {[%clk 0:01:34]} 38. Rxe5 {[%clk 0:02:03]}  Rxb4 {[%clk 0:01:35]} 39. g5 {[%clk 0:02:04]}  Rb6 {[%clk 0:01:34]} 40. f4 {[%clk 0:02:02]}  Rd6 {[%clk 0:01:27]} 41. f5 {[%clk 0:02:02]}  Kd7 {[%clk 0:01:27]} 42. g6 {[%clk 0:02:01]}  a5 {[%clk 0:01:22]} 43. g7 {[%clk 0:02:01]}  a4 {[%clk 0:01:21]} 44. g8=Q {[%clk 0:02:00]}  a3 {[%clk 0:01:22]} 45. Qe8+ {[%clk 0:01:59]}  Kc7 {[%clk 0:01:22]} 46. Rc5+ {[%clk 0:01:58]}  Kb6 {[%clk 0:01:18]} 47. Qb5+ {[%clk 0:01:59]}  Ka7 {[%clk 0:01:19]} 48. Rc7 {[%clk 0:01:58]}  Rb6 {[%clk 0:01:17]} 49. Qa5+ {[%clk 0:01:57]}  Ra6 {[%clk 0:01:12]} 50. Qc5+ {[%clk 0:01:57]} 1-0


[Site "https://www.chess.com"]

[Event "Titled Tuesday Blitz July 11 Early 2023"]
[White "Rodriguez Fontecha, Marcos"]
[Black "Sala, Giulia"]
[WhiteFideId "2256576"]
[BlackFideId "2840451"]
[WhiteElo "2453"]
[BlackElo "2251"]
[Result "1-0"]
[Round "3"]
[TimeControl "180+2"]
[Date "2023.07.11"]
[WhiteClock "0:00:06"]
[BlackClock "0:00:00"]
[Board "192"]

1. e4 {[%clk 0:03:00]}  e5 {[%clk 0:02:54]} 2. Nf3 {[%clk 0:02:59]}  Nf6 {[%clk 0:02:51]} 3. d4 {[%clk 0:02:58]}  exd4 {[%clk 0:02:39]} 4. e5 {[%clk 0:02:58]}  Nd5 {[%clk 0:02:38]} 5. Qxd4 {[%clk 0:02:58]}  Nb6 {[%clk 0:02:38]} 6. Bd3 {[%clk 0:02:54]}  Nc6 {[%clk 0:02:36]} 7. Qf4 {[%clk 0:02:54]}  d6 {[%clk 0:02:30]} 8. O-O {[%clk 0:02:46]}  Be7 {[%clk 0:02:26]} 9. Qg3 {[%clk 0:02:33]}  dxe5 {[%clk 0:02:22]} 10. Qxg7 {[%clk 0:02:24]}  Bf6 {[%clk 0:02:21]} 11. Qh6 {[%clk 0:02:24]}  Bg4 {[%clk 0:02:17]} 12. Ng5 {[%clk 0:02:14]}  Bxg5 {[%clk 0:01:40]} 13. Bxg5 {[%clk 0:02:12]}  Qd7 {[%clk 0:01:40]} 14. Qg7 {[%clk 0:02:05]}  Rf8 {[%clk 0:01:36]} 15. Qh6 {[%clk 0:01:25]}  Nd5 {[%clk 0:01:28]} 16. Nd2 {[%clk 0:01:16]}  f6 {[%clk 0:01:25]} 17. Bh4 {[%clk 0:01:09]}  O-O-O {[%clk 0:01:22]} 18. Ne4 {[%clk 0:01:04]}  Qe7 {[%clk 0:00:54]} 19. Rfe1 {[%clk 0:00:57]}  Bf5 {[%clk 0:00:46]} 20. Nxf6 {[%clk 0:00:37]}  Nxf6 {[%clk 0:00:33]} 21. Bxf5+ {[%clk 0:00:35]}  Kb8 {[%clk 0:00:33]} 22. h3 {[%clk 0:00:26]}  Nd4 {[%clk 0:00:32]} 23. Bd3 {[%clk 0:00:23]}  Qd6 {[%clk 0:00:23]} 24. Bxf6 {[%clk 0:00:16]}  Rxf6 {[%clk 0:00:21]} 25. Qe3 {[%clk 0:00:12]}  Re8 {[%clk 0:00:18]} 26. c3 {[%clk 0:00:12]}  Nc6 {[%clk 0:00:17]} 27. Be4 {[%clk 0:00:13]}  Rg8 {[%clk 0:00:16]} 28. Rad1 {[%clk 0:00:12]}  Qe6 {[%clk 0:00:15]} 29. Qc5 {[%clk 0:00:09]}  Qxh3 {[%clk 0:00:10]} 30. Qe3 {[%clk 0:00:05]}  Qxe3 {[%clk 0:00:09]} 31. Rxe3 {[%clk 0:00:06]}  Ne7 {[%clk 0:00:09]} 32. Rh3 {[%clk 0:00:06]}  Rf7 {[%clk 0:00:07]} 33. Rd7 {[%clk 0:00:06]}  Kc8 {[%clk 0:00:06]} 34. Rd1 {[%clk 0:00:05]}  Rgf8 {[%clk 0:00:07]} 35. f3 {[%clk 0:00:05]}  Ng6 {[%clk 0:00:07]} 36. Rh6 {[%clk 0:00:04]}  Nf4 {[%clk 0:00:07]} 37. Rxh7 {[%clk 0:00:04]}  Ne2+ {[%clk 0:00:06]} 38. Kf2 {[%clk 0:00:03]}  Nf4 {[%clk 0:00:06]} 39. Rxf7 {[%clk 0:00:03]}  Rxf7 {[%clk 0:00:07]} 40. g3 {[%clk 0:00:04]}  Ne6 {[%clk 0:00:06]} 41. Ke3 {[%clk 0:00:04]}  c6 {[%clk 0:00:06]} 42. g4 {[%clk 0:00:04]}  Nc5 {[%clk 0:00:07]} 43. Bf5+ {[%clk 0:00:05]}  Kc7 {[%clk 0:00:07]} 44. Rh1 {[%clk 0:00:05]}  Kb6 {[%clk 0:00:07]} 45. b4 {[%clk 0:00:05]}  Na4 {[%clk 0:00:06]} 46. c4 {[%clk 0:00:06]}  c5 {[%clk 0:00:06]} 47. b5 {[%clk 0:00:06]}  Ka5 {[%clk 0:00:06]} 48. Rh6 {[%clk 0:00:06]}  Kb4 {[%clk 0:00:06]} 49. Bd3 {[%clk 0:00:05]}  Nb2 {[%clk 0:00:06]} 50. g5 {[%clk 0:00:04]}  Nxc4+ {[%clk 0:00:06]} 51. Bxc4 {[%clk 0:00:05]}  Kxc4 {[%clk 0:00:07]} 52. g6 {[%clk 0:00:05]}  Rg7 {[%clk 0:00:07]} 53. Ke4 {[%clk 0:00:05]}  Kxb5 {[%clk 0:00:07]} 54. Kxe5 {[%clk 0:00:06]}  c4 {[%clk 0:00:08]} 55. Kf6 {[%clk 0:00:06]}  Rf7+ {[%clk 0:00:00]} 56. gxf7 {[%clk 0:00:06]} 1-0


[Site "https://www.chess.com"]

[Event "Titled Tuesday Blitz July 11 Early 2023"]
[White "De Souza, Cristiano Gomes"]
[Black "Begunov, Konstantin"]
[WhiteFideId "2151758"]
[BlackFideId "4118510"]
[WhiteElo "2243"]
[BlackElo "2435"]
[Result "0-1"]
[Round "3"]
[TimeControl "180+2"]
[Date "2023.07.11"]
[WhiteClock "0:00:08"]
[BlackClock "0:00:22"]
[Board "194"]

1. d4 {[%clk 0:03:00]}  d5 {[%clk 0:02:58]} 2. c4 {[%clk 0:02:58]}  c6 {[%clk 0:02:58]} 3. Nf3 {[%clk 0:02:57]}  Nf6 {[%clk 0:02:59]} 4. Nc3 {[%clk 0:02:57]}  dxc4 {[%clk 0:02:59]} 5. a4 {[%clk 0:02:56]}  Bg4 {[%clk 0:03:00]} 6. Ne5 {[%clk 0:02:56]}  Bh5 {[%clk 0:03:00]} 7. f3 {[%clk 0:02:56]}  Nfd7 {[%clk 0:02:59]} 8. Nxc4 {[%clk 0:02:51]}  e5 {[%clk 0:02:59]} 9. dxe5 {[%clk 0:02:50]}  Qh4+ {[%clk 0:02:59]} 10. g3 {[%clk 0:02:41]}  Qxc4 {[%clk 0:03:00]} 11. e4 {[%clk 0:02:39]}  Qb4 {[%clk 0:03:00]} 12. Bd2 {[%clk 0:02:34]}  Qa5 {[%clk 0:02:39]} 13. g4 {[%clk 0:02:32]}  Bg6 {[%clk 0:02:37]} 14. f4 {[%clk 0:02:32]}  Bb4 {[%clk 0:02:31]} 15. f5 {[%clk 0:02:29]}  Nxe5 {[%clk 0:02:31]} 16. fxg6 {[%clk 0:02:26]}  hxg6 {[%clk 0:02:31]} 17. Be2 {[%clk 0:02:25]}  Nbd7 {[%clk 0:02:24]} 18. O-O {[%clk 0:02:21]}  O-O-O {[%clk 0:02:05]} 19. Qc2 {[%clk 0:02:15]}  Rh3 {[%clk 0:01:55]} 20. Kg2 {[%clk 0:02:07]}  Rdh8 {[%clk 0:01:52]} 21. Bf4 {[%clk 0:02:06]}  Bxc3 {[%clk 0:01:33]} 22. bxc3 {[%clk 0:02:04]}  Rxc3 {[%clk 0:01:32]} 23. Qd2 {[%clk 0:02:01]}  Qb4 {[%clk 0:01:09]} 24. Bf3 {[%clk 0:01:53]}  Qc5 {[%clk 0:01:00]} 25. Rac1 {[%clk 0:01:48]}  Nxf3 {[%clk 0:00:50]} 26. Qxc3 {[%clk 0:01:36]}  Qxc3 {[%clk 0:00:38]} 27. Rxc3 {[%clk 0:01:35]}  Nfe5 {[%clk 0:00:39]} 28. h3 {[%clk 0:01:25]}  f6 {[%clk 0:00:38]} 29. Rb3 {[%clk 0:01:20]}  g5 {[%clk 0:00:38]} 30. Bg3 {[%clk 0:01:18]}  Re8 {[%clk 0:00:38]} 31. a5 {[%clk 0:01:16]}  b5 {[%clk 0:00:34]} 32. axb6 {[%clk 0:01:07]}  axb6 {[%clk 0:00:35]} 33. Ra1 {[%clk 0:01:06]}  Kb7 {[%clk 0:00:35]} 34. Rba3 {[%clk 0:01:05]}  c5 {[%clk 0:00:35]} 35. Ra7+ {[%clk 0:00:52]}  Kc6 {[%clk 0:00:36]} 36. Ra8 {[%clk 0:00:52]}  Rxa8 {[%clk 0:00:33]} 37. Rxa8 {[%clk 0:00:51]}  c4 {[%clk 0:00:33]} 38. Kf2 {[%clk 0:00:38]}  b5 {[%clk 0:00:33]} 39. Ke3 {[%clk 0:00:37]}  b4 {[%clk 0:00:31]} 40. Kd4 {[%clk 0:00:36]}  c3 {[%clk 0:00:31]} 41. Ra1 {[%clk 0:00:19]}  Kb5 {[%clk 0:00:30]} 42. Bxe5 {[%clk 0:00:17]}  Nxe5 {[%clk 0:00:30]} 43. Ke3 {[%clk 0:00:17]}  Kc4 {[%clk 0:00:30]} 44. Ra8 {[%clk 0:00:16]}  b3 {[%clk 0:00:28]} 45. Rc8+ {[%clk 0:00:16]}  Kb4 {[%clk 0:00:28]} 46. Ke2 {[%clk 0:00:16]}  b2 {[%clk 0:00:23]} 47. Rb8+ {[%clk 0:00:15]}  Kc4 {[%clk 0:00:23]} 48. Kd1 {[%clk 0:00:15]}  Nf3 {[%clk 0:00:19]} 49. Rc8+ {[%clk 0:00:14]}  Kd3 {[%clk 0:00:20]} 50. Rd8+ {[%clk 0:00:14]}  Kxe4 {[%clk 0:00:20]} 51. Kc2 {[%clk 0:00:12]}  Nd2 {[%clk 0:00:19]} 52. Rb8 {[%clk 0:00:12]}  b1=Q+ {[%clk 0:00:19]} 53. Rxb1 {[%clk 0:00:12]}  Nxb1 {[%clk 0:00:20]} 54. Kxb1 {[%clk 0:00:12]}  Kf3 {[%clk 0:00:20]} 55. Kc2 {[%clk 0:00:12]}  Kg3 {[%clk 0:00:21]} 56. Kxc3 {[%clk 0:00:08]}  Kxh3 {[%clk 0:00:22]} 0-1


[Site "https://www.chess.com"]

[Event "Titled Tuesday Blitz July 11 Early 2023"]
[White "Kopacz, Grzegorz"]
[Black "Herman, Matthew"]
[WhiteFideId "1109880"]
[BlackFideId "2028964"]
[WhiteElo "2232"]
[BlackElo "2412"]
[Result "0-1"]
[Round "3"]
[TimeControl "180+2"]
[Date "2023.07.11"]
[WhiteClock "0:00:03"]
[BlackClock "0:00:11"]
[Board "196"]

1. d4 {[%clk 0:03:00]}  Nf6 {[%clk 0:02:59]} 2. c4 {[%clk 0:03:01]}  g6 {[%clk 0:03:00]} 3. Nc3 {[%clk 0:03:01]}  Bg7 {[%clk 0:03:00]} 4. Nf3 {[%clk 0:02:59]}  d6 {[%clk 0:03:01]} 5. Bg5 {[%clk 0:02:59]}  O-O {[%clk 0:03:00]} 6. e3 {[%clk 0:02:59]}  c5 {[%clk 0:02:58]} 7. d5 {[%clk 0:02:59]}  h6 {[%clk 0:02:57]} 8. Bh4 {[%clk 0:02:58]}  g5 {[%clk 0:02:58]} 9. Bg3 {[%clk 0:02:58]}  Nh5 {[%clk 0:02:58]} 10. Nxg5 {[%clk 0:02:34]}  Nxg3 {[%clk 0:02:47]} 11. hxg3 {[%clk 0:02:34]}  hxg5 {[%clk 0:02:48]} 12. Qh5 {[%clk 0:02:34]}  Bf5 {[%clk 0:02:25]} 13. Qxg5 {[%clk 0:02:27]}  Bg6 {[%clk 0:02:16]} 14. O-O-O {[%clk 0:02:22]}  Qa5 {[%clk 0:02:01]} 15. Bd3 {[%clk 0:02:14]}  Nd7 {[%clk 0:00:52]} 16. Bxg6 {[%clk 0:02:05]}  fxg6 {[%clk 0:00:52]} 17. Qxg6 {[%clk 0:01:57]}  Rf6 {[%clk 0:00:23]} 18. Qh7+ {[%clk 0:01:44]}  Kf8 {[%clk 0:00:23]} 19. Ne4 {[%clk 0:01:41]}  Qxa2 {[%clk 0:00:20]} 20. Nxf6 {[%clk 0:01:05]}  Nxf6 {[%clk 0:00:20]} 21. Qc2 {[%clk 0:01:01]}  b5 {[%clk 0:00:19]} 22. b3 {[%clk 0:00:42]}  Qa3+ {[%clk 0:00:14]} 23. Kd2 {[%clk 0:00:39]}  Rb8 {[%clk 0:00:10]} 24. Ke2 {[%clk 0:00:18]}  bxc4 {[%clk 0:00:10]} 25. Qxc4 {[%clk 0:00:18]}  Rxb3 {[%clk 0:00:10]} 26. Kf3 {[%clk 0:00:16]}  Rb4 {[%clk 0:00:08]} 27. Qd3 {[%clk 0:00:14]}  Qb2 {[%clk 0:00:07]} 28. Rd2 {[%clk 0:00:11]}  Qe5 {[%clk 0:00:07]} 29. Ke2 {[%clk 0:00:11]}  a5 {[%clk 0:00:07]} 30. Qa6 {[%clk 0:00:10]}  Kf7 {[%clk 0:00:04]} 31. Qc8 {[%clk 0:00:10]}  a4 {[%clk 0:00:04]} 32. Rhd1 {[%clk 0:00:06]}  a3 {[%clk 0:00:04]} 33. f4 {[%clk 0:00:06]}  Qc3 {[%clk 0:00:04]} 34. Qe6+ {[%clk 0:00:05]}  Kf8 {[%clk 0:00:04]} 35. Qc8+ {[%clk 0:00:06]}  Ne8 {[%clk 0:00:04]} 36. Qf5+ {[%clk 0:00:05]}  Bf6 {[%clk 0:00:05]} 37. Rh1 {[%clk 0:00:05]}  Ng7 {[%clk 0:00:04]} 38. Rh8+ {[%clk 0:00:04]}  Kf7 {[%clk 0:00:03]} 39. Qe6+ {[%clk 0:00:04]}  Nxe6 {[%clk 0:00:03]} 40. dxe6+ {[%clk 0:00:04]}  Kxe6 {[%clk 0:00:04]} 41. Rh5 {[%clk 0:00:04]}  Qc4+ {[%clk 0:00:05]} 42. Kf2 {[%clk 0:00:03]}  Kd7 {[%clk 0:00:06]} 43. Rh7 {[%clk 0:00:03]}  a2 {[%clk 0:00:06]} 44. Rh1 {[%clk 0:00:02]}  a1=Q {[%clk 0:00:06]} 45. Rxa1 {[%clk 0:00:02]}  Bxa1 {[%clk 0:00:07]} 46. g4 {[%clk 0:00:03]}  Bc3 {[%clk 0:00:08]} 47. Re2 {[%clk 0:00:04]}  Rb2 {[%clk 0:00:08]} 48. Rxb2 {[%clk 0:00:04]}  Bxb2 {[%clk 0:00:09]} 49. g5 {[%clk 0:00:05]}  Bg7 {[%clk 0:00:10]} 50. Kf3 {[%clk 0:00:05]}  Qd3 {[%clk 0:00:10]} 51. Kg4 {[%clk 0:00:03]}  c4 {[%clk 0:00:11]} 0-1


[Site "https://www.chess.com"]

[Event "Titled Tuesday Blitz July 11 Early 2023"]
[White "Glavina, Pablo"]
[Black "Larina, Maria"]
[WhiteFideId "100234"]
[BlackFideId "24113182"]
[WhiteElo "2405"]
[BlackElo "2216"]
[Result "0-1"]
[Round "3"]
[TimeControl "180+2"]
[Date "2023.07.11"]
[WhiteClock "0:00:08"]
[BlackClock "0:00:14"]
[Board "199"]

1. e4 {[%clk 0:03:00]}  c6 {[%clk 0:03:00]} 2. d4 {[%clk 0:03:00]}  d5 {[%clk 0:03:00]} 3. exd5 {[%clk 0:03:00]}  cxd5 {[%clk 0:03:01]} 4. c4 {[%clk 0:02:58]}  Nf6 {[%clk 0:03:00]} 5. Nf3 {[%clk 0:02:58]}  e6 {[%clk 0:02:58]} 6. Nc3 {[%clk 0:02:57]}  Bb4 {[%clk 0:02:59]} 7. Bg5 {[%clk 0:02:55]}  Qa5 {[%clk 0:02:35]} 8. Qb3 {[%clk 0:02:48]}  Bxc3+ {[%clk 0:02:23]} 9. bxc3 {[%clk 0:02:46]}  Ne4 {[%clk 0:02:21]} 10. Bd2 {[%clk 0:02:42]}  Nxd2 {[%clk 0:02:20]} 11. Kxd2 {[%clk 0:02:40]}  dxc4 {[%clk 0:02:13]} 12. Bxc4 {[%clk 0:02:39]}  O-O {[%clk 0:02:08]} 13. h4 {[%clk 0:02:35]}  Qc7 {[%clk 0:02:03]} 14. h5 {[%clk 0:02:24]}  h6 {[%clk 0:01:48]} 15. Ne5 {[%clk 0:02:18]}  Nc6 {[%clk 0:01:46]} 16. Nxc6 {[%clk 0:02:06]}  bxc6 {[%clk 0:01:29]} 17. Ke2 {[%clk 0:01:54]}  c5 {[%clk 0:01:26]} 18. Rac1 {[%clk 0:01:44]}  cxd4 {[%clk 0:01:21]} 19. cxd4 {[%clk 0:01:41]}  Qf4 {[%clk 0:01:21]} 20. f3 {[%clk 0:01:34]}  Qxd4 {[%clk 0:01:17]} 21. Rhd1 {[%clk 0:01:29]}  Qe5+ {[%clk 0:01:17]} 22. Kf2 {[%clk 0:01:27]}  Qxh5 {[%clk 0:01:17]} 23. Qd3 {[%clk 0:01:05]}  Bb7 {[%clk 0:01:10]} 24. Bb3 {[%clk 0:01:02]}  Rfc8 {[%clk 0:00:42]} 25. Rxc8+ {[%clk 0:00:41]}  Rxc8 {[%clk 0:00:43]} 26. Qd7 {[%clk 0:00:40]}  Qc5+ {[%clk 0:00:37]} 27. Kf1 {[%clk 0:00:35]}  Ba6+ {[%clk 0:00:36]} 28. Rd3 {[%clk 0:00:26]}  Bxd3+ {[%clk 0:00:35]} 29. Qxd3 {[%clk 0:00:27]}  Qf5 {[%clk 0:00:24]} 30. Qa6 {[%clk 0:00:24]}  Qb1+ {[%clk 0:00:23]} 31. Kf2 {[%clk 0:00:22]}  Qb2+ {[%clk 0:00:21]} 32. Kg3 {[%clk 0:00:21]}  Qe5+ {[%clk 0:00:20]} 33. Kf2 {[%clk 0:00:21]}  Qc5+ {[%clk 0:00:20]} 34. Kg3 {[%clk 0:00:20]}  Rd8 {[%clk 0:00:20]} 35. Bxe6 {[%clk 0:00:13]}  fxe6 {[%clk 0:00:18]} 36. Qxe6+ {[%clk 0:00:14]}  Kh8 {[%clk 0:00:19]} 37. Qf7 {[%clk 0:00:12]}  Qg5+ {[%clk 0:00:16]} 38. Kf2 {[%clk 0:00:11]}  Rd2+ {[%clk 0:00:14]} 39. Ke1 {[%clk 0:00:08]}  Qe3+ {[%clk 0:00:13]} 40. Kf1 {[%clk 0:00:08]}  Qf2# {[%clk 0:00:14]} 0-1


[Site "https://www.chess.com"]

[Event "Titled Tuesday Blitz July 11 Early 2023"]
[White "Villuendas Valero, Adrian"]
[Black "Novikova, Margarita"]
[WhiteFideId "2262460"]
[BlackFideId "14109689"]
[WhiteElo "2397"]
[BlackElo "2169"]
[Result "0-1"]
[Round "3"]
[TimeControl "180+2"]
[Date "2023.07.11"]
[WhiteClock "0:00:00"]
[BlackClock "0:00:11"]
[Board "202"]

1. d4 {[%clk 0:03:00]}  d5 {[%clk 0:02:56]} 2. c4 {[%clk 0:03:00]}  e6 {[%clk 0:02:56]} 3. Nc3 {[%clk 0:03:00]}  Bb4 {[%clk 0:02:56]} 4. cxd5 {[%clk 0:02:59]}  exd5 {[%clk 0:02:56]} 5. Qb3 {[%clk 0:02:58]}  Bxc3+ {[%clk 0:02:53]} 6. bxc3 {[%clk 0:02:57]}  Ne7 {[%clk 0:02:51]} 7. Bg5 {[%clk 0:02:55]}  c6 {[%clk 0:02:48]} 8. e3 {[%clk 0:02:52]}  h6 {[%clk 0:02:47]} 9. Bh4 {[%clk 0:02:50]}  O-O {[%clk 0:02:45]} 10. Nf3 {[%clk 0:02:50]}  Qc7 {[%clk 0:02:41]} 11. Bd3 {[%clk 0:02:49]}  Nf5 {[%clk 0:02:33]} 12. Bg3 {[%clk 0:02:46]}  Nxg3 {[%clk 0:02:29]} 13. hxg3 {[%clk 0:02:47]}  Be6 {[%clk 0:02:22]} 14. Rb1 {[%clk 0:02:46]}  b6 {[%clk 0:02:21]} 15. a4 {[%clk 0:02:42]}  c5 {[%clk 0:02:17]} 16. dxc5 {[%clk 0:02:38]}  bxc5 {[%clk 0:02:17]} 17. Qb7 {[%clk 0:02:37]}  Qxb7 {[%clk 0:02:06]} 18. Rxb7 {[%clk 0:02:38]}  Nd7 {[%clk 0:01:51]} 19. O-O {[%clk 0:02:36]}  Rfb8 {[%clk 0:01:40]} 20. Rfb1 {[%clk 0:02:36]}  Nb6 {[%clk 0:01:38]} 21. Rxb8+ {[%clk 0:02:33]}  Rxb8 {[%clk 0:01:39]} 22. a5 {[%clk 0:02:33]}  Nd7 {[%clk 0:01:39]} 23. Rxb8+ {[%clk 0:02:30]}  Nxb8 {[%clk 0:01:40]} 24. Ne5 {[%clk 0:02:29]}  Kf8 {[%clk 0:01:37]} 25. Bb5 {[%clk 0:02:27]}  Ke7 {[%clk 0:01:34]} 26. Kf1 {[%clk 0:02:24]}  Kd6 {[%clk 0:01:33]} 27. Nd3 {[%clk 0:02:19]}  a6 {[%clk 0:01:30]} 28. Ba4 {[%clk 0:02:19]}  Bd7 {[%clk 0:01:17]} 29. Bd1 {[%clk 0:02:09]}  Bb5 {[%clk 0:01:17]} 30. Ke2 {[%clk 0:02:06]}  Nc6 {[%clk 0:01:16]} 31. Kd2 {[%clk 0:02:06]}  Nxa5 {[%clk 0:01:15]} 32. Nf4 {[%clk 0:02:01]}  g6 {[%clk 0:01:13]} 33. Bf3 {[%clk 0:01:59]}  Nc4+ {[%clk 0:01:09]} 34. Kc2 {[%clk 0:01:57]}  Ne5 {[%clk 0:01:08]} 35. g4 {[%clk 0:01:26]}  g5 {[%clk 0:01:07]} 36. Nh5 {[%clk 0:01:23]}  Ke6 {[%clk 0:00:54]} 37. Ng3 {[%clk 0:01:20]}  Nxf3 {[%clk 0:00:44]} 38. gxf3 {[%clk 0:01:21]}  Be2 {[%clk 0:00:44]} 39. Nf5 {[%clk 0:01:20]}  Bxf3 {[%clk 0:00:42]} 40. Nxh6 {[%clk 0:01:18]}  Kf6 {[%clk 0:00:38]} 41. Kd2 {[%clk 0:01:14]}  a5 {[%clk 0:00:37]} 42. Nf5 {[%clk 0:01:05]}  a4 {[%clk 0:00:35]} 43. Nd6 {[%clk 0:01:03]}  Bxg4 {[%clk 0:00:31]} 44. Nb7 {[%clk 0:01:01]}  c4 {[%clk 0:00:27]} 45. Nc5 {[%clk 0:01:01]}  a3 {[%clk 0:00:27]} 46. Kc1 {[%clk 0:01:00]}  Ke5 {[%clk 0:00:23]} 47. Kb1 {[%clk 0:00:54]}  Kd6 {[%clk 0:00:21]} 48. Na6 {[%clk 0:00:52]}  Ke5 {[%clk 0:00:12]} 49. Nb4 {[%clk 0:00:50]}  Ke4 {[%clk 0:00:11]} 50. Ka2 {[%clk 0:00:49]}  Be6 {[%clk 0:00:11]} 51. Kxa3 {[%clk 0:00:45]}  Kf3 {[%clk 0:00:12]} 52. Nc2 {[%clk 0:00:44]}  Kxf2 {[%clk 0:00:11]} 53. Kb4 {[%clk 0:00:44]}  g4 {[%clk 0:00:10]} 54. Kc5 {[%clk 0:00:41]}  g3 {[%clk 0:00:10]} 55. e4 {[%clk 0:00:14]}  g2 {[%clk 0:00:10]} 56. exd5 {[%clk 0:00:14]}  g1=Q {[%clk 0:00:10]} 57. dxe6 {[%clk 0:00:13]}  fxe6 {[%clk 0:00:11]} 58. Kxc4 {[%clk 0:00:13]}  Ke2 {[%clk 0:00:11]} 59. Nd4+ {[%clk 0:00:13]}  Ke3 {[%clk 0:00:09]} 60. Nc2+ {[%clk 0:00:13]}  Ke4 {[%clk 0:00:09]} 61. Nd4 {[%clk 0:00:13]}  e5 {[%clk 0:00:09]} 62. Ne2 {[%clk 0:00:13]}  Qa7 {[%clk 0:00:09]} 63. Ng3+ {[%clk 0:00:12]}  Kf3 {[%clk 0:00:07]} 64. Nf5 {[%clk 0:00:11]}  Qa6+ {[%clk 0:00:07]} 65. Kd5 {[%clk 0:00:11]}  e4 {[%clk 0:00:07]} 66. Nd4+ {[%clk 0:00:10]}  Ke3 {[%clk 0:00:05]} 67. Nf5+ {[%clk 0:00:08]}  Kd3 {[%clk 0:00:06]} 68. c4 {[%clk 0:00:07]}  Qa8+ {[%clk 0:00:06]} 69. Kc5 {[%clk 0:00:06]}  Qc8+ {[%clk 0:00:06]} 70. Kb5 {[%clk 0:00:06]}  Qxf5+ {[%clk 0:00:07]} 71. c5 {[%clk 0:00:05]}  Qc8 {[%clk 0:00:08]} 72. Kb6 {[%clk 0:00:05]}  Qxc5+ {[%clk 0:00:08]} 73. Kxc5 {[%clk 0:00:04]}  e3 {[%clk 0:00:09]} 74. Kd5 {[%clk 0:00:04]}  e2 {[%clk 0:00:10]} 75. Ke5 {[%clk 0:00:04]}  e1=Q+ {[%clk 0:00:11]} 76. Kd5 {[%clk 0:00:04]}  Qe4+ {[%clk 0:00:11]} 77. Kc5 {[%clk 0:00:05]}  Qd4+ {[%clk 0:00:12]} 78. Kc6 {[%clk 0:00:03]}  Kc4 {[%clk 0:00:11]} 79. Kc7 {[%clk 0:00:03]}  Qd5 {[%clk 0:00:12]} 80. Kb6 {[%clk 0:00:03]}  Qc5+ {[%clk 0:00:11]} 81. Kb7 {[%clk 0:00:02]}  Kb5 {[%clk 0:00:11]} 82. Kb8 {[%clk 0:00:02]}  Qe7 {[%clk 0:00:11]} 83. Ka8 {[%clk 0:00:02]}  Qd7 {[%clk 0:00:10]} 84. Kb8 {[%clk 0:00:00]}  Kb6 {[%clk 0:00:11]} 0-1


[Site "https://www.chess.com"]

[Event "Titled Tuesday Blitz July 11 Early 2023"]
[White "Gaal, Zsoka"]
[Black "Dargan, Paul A G"]
[WhiteFideId "777765"]
[BlackFideId "416762"]
[WhiteElo "2393"]
[BlackElo "2167"]
[Result "1-0"]
[Round "3"]
[TimeControl "180+2"]
[Date "2023.07.11"]
[WhiteClock "0:02:31"]
[BlackClock "0:00:02"]
[Board "204"]

1. Nf3 {[%clk 0:03:00]}  d5 {[%clk 0:02:59]} 2. b3 {[%clk 0:03:01]}  Nf6 {[%clk 0:02:54]} 3. Bb2 {[%clk 0:03:02]}  c5 {[%clk 0:02:54]} 4. g3 {[%clk 0:03:03]}  Nc6 {[%clk 0:02:54]} 5. d4 {[%clk 0:03:04]}  e6 {[%clk 0:02:54]} 6. Bg2 {[%clk 0:03:04]}  Be7 {[%clk 0:02:55]} 7. O-O {[%clk 0:03:05]}  O-O {[%clk 0:02:55]} 8. e3 {[%clk 0:03:01]}  Ne4 {[%clk 0:02:53]} 9. c4 {[%clk 0:03:01]}  Bf6 {[%clk 0:02:52]} 10. Nbd2 {[%clk 0:02:59]}  cxd4 {[%clk 0:02:31]} 11. exd4 {[%clk 0:02:59]}  Nxd2 {[%clk 0:02:11]} 12. Qxd2 {[%clk 0:02:59]}  dxc4 {[%clk 0:02:11]} 13. bxc4 {[%clk 0:03:00]}  Bd7 {[%clk 0:01:54]} 14. Rac1 {[%clk 0:03:01]}  Rc8 {[%clk 0:01:49]} 15. Rfd1 {[%clk 0:03:01]}  Na5 {[%clk 0:01:41]} 16. Qe2 {[%clk 0:03:01]}  Bc6 {[%clk 0:01:25]} 17. d5 {[%clk 0:02:51]}  exd5 {[%clk 0:01:17]} 18. cxd5 {[%clk 0:02:52]}  Ba4 {[%clk 0:01:13]} 19. Rxc8 {[%clk 0:02:50]}  Qxc8 {[%clk 0:00:52]} 20. Rc1 {[%clk 0:02:50]}  Qd8 {[%clk 0:00:42]} 21. Bxf6 {[%clk 0:02:46]}  Qxf6 {[%clk 0:00:41]} 22. Qd2 {[%clk 0:02:47]}  b6 {[%clk 0:00:34]} 23. Nd4 {[%clk 0:02:45]}  Rd8 {[%clk 0:00:30]} 24. Qb4 {[%clk 0:02:42]}  Be8 {[%clk 0:00:24]} 25. h4 {[%clk 0:02:40]}  h6 {[%clk 0:00:24]} 26. Rc7 {[%clk 0:02:38]}  Qe5 {[%clk 0:00:18]} 27. Rxa7 {[%clk 0:02:35]}  Qb8 {[%clk 0:00:08]} 28. Qe7 {[%clk 0:02:34]}  Nc4 {[%clk 0:00:06]} 29. Nc6 {[%clk 0:02:31]}  Bxc6 {[%clk 0:00:02]} 30. Qxf7+ {[%clk 0:02:31]} 1-0


[Site "https://www.chess.com"]